bitfinex/quotes_ETHUSD_20250114
["timestamp","ask_amount","ask_price","bid_price","bid_amount"]
[1736833961310,0.7771,3169.7,3168.9,5.36018204]
[1736833961517,0.55,3169.6,3169.1,0.7671]
[1736833962031,0.55,3169.6,3169.2,0.21221522]
[1736833967262,3.15466,3170.0,3169.3,0.7671]
[1736833967442,3.15468,3169.9,3169.4,0.2116437]
[1736833967660,0.55,3169.8,3169.4,0.2116437]
[1736833969868,0.55,3169.7,3169.4,0.2116437]
[1736833972359,3.70461,3170.0,3169.4,0.2116437]
[1736833972537,0.55,3170.0,3169.4,0.2116437]
[1736833972742,0.55,3169.8,3169.4,0.2116437]
[1736833973076,0.5575,3170.0,3169.4,0.2116437]
[1736833973242,3.71213,3170.0,3169.4,0.2116437]
[1736833974387,0.55,3169.8,3169.4,0.2116437]
[1736833976199,0.55,3169.7,3169.4,0.2116437]
[1736833976549,0.55,3169.7,3169.3,0.7671]
[1736833976749,0.55,3169.7,3169.5,0.21093487]
[1736833976985,0.55,3169.7,3169.4,0.21098206]
[1736833977193,0.55,3169.7,3169.6,0.21088767]
[1736833977400,0.55,3169.7,3169.3,0.7671]
[1736833977401,0.55,3169.7,3169.5,0.21093487]
[1736833977549,0.55,3169.7,3169.6,0.21088767]
[1736833977890,0.55,3169.7,3169.3,0.7671]
[1736833978099,0.55,3169.7,3169.4,0.21088666]
[1736833979696,0.0075,3170.0,3169.4,0.21088666]
[1736833979697,0.5575,3170.0,3169.4,0.21088666]
[1736833979885,3.15487,3169.7,3169.3,0.7671]
[1736833980085,0.434102,3169.9,3169.4,0.21088666]
[1736833980086,0.55,3169.8,3169.4,0.21088666]
[1736833980321,3.70478,3169.8,3169.3,0.7671]
[1736833980502,3.70478,3169.8,3169.4,0.21088666]
[1736833981731,3.15467,3169.9,3169.4,0.21088666]
[1736833982381,0.55,3169.8,3169.4,0.21088666]
[1736833983594,3.15453,3170.1,3169.5,0.8296]
[1736833983834,3.15429,3170.3,3169.5,1.25232877]
[1736833983997,3.1544,3170.2,3169.6,0.21060149]
[1736833984629,0.55,3170.1,3169.6,0.21060149]
[1736833984984,0.55,3170.3,3169.6,0.21060149]
[1736833985182,0.55,3170.0,3169.6,0.21060149]
[1736833987539,0.015,3170.2,3169.6,0.21060149]
[1736833987687,3.15478,3169.8,3169.6,0.21060149]
[1736833988398,0.55,3169.7,3169.6,0.21060149]
[1736833988609,3.70487,3169.7,3169.6,0.21060149]
[1736833989007,3.70487,3169.7,3169.2,0.8296]
[1736833989407,3.70487,3169.7,3169.3,0.21050148]
[1736833989610,4.023224,3169.7,3169.3,0.21050148]
[1736833989784,4.023224,3169.7,3169.2,0.8296]
[1736833989983,4.023224,3169.7,3169.4,0.21045428]
[1736833990232,4.023224,3169.7,3169.3,0.21050148]
[1736833990518,3.70487,3169.7,3169.4,0.21045428]
[1736833990717,3.70487,3169.7,3169.2,0.8296]
[1736833990923,3.70487,3169.7,3169.3,0.21050148]
[1736833991133,0.5725,3169.9,3169.2,0.8296]
[1736833991300,0.5725,3169.9,3169.3,0.21050148]
[1736833991301,0.55,3169.5,3169.3,0.21050148]
[1736833991500,0.55,3169.5,3169.2,0.8296]
[1736833991914,0.55,3169.5,3169.3,0.21050148]
[1736833992221,3.15479,3169.8,3169.2,0.8296]
[1736833992391,3.15479,3169.8,3169.4,0.21045428]
[1736833992593,0.55,3169.7,3169.3,0.21050148]
[1736833992790,0.55,3169.7,3169.5,0.21040708]
[1736833992992,0.55,3169.7,3169.4,0.21045428]
[1736833993386,0.55,3169.7,3169.2,1.0561645]
[1736833993591,0.55,3169.7,3169.5,0.21040708]
[1736833993786,0.55,3169.7,3169.2,1.0561645]
[1736833994004,0.55,3169.7,3169.6,0.21035988]
[1736833994208,0.55,3169.7,3169.2,0.8296]
[1736833994526,0.55,3169.7,3169.6,0.21035988]
[1736833994838,0.55,3169.7,3169.2,0.8296]
[1736833995009,0.55,3169.7,3169.6,0.21035988]
[1736833995206,0.55,3169.7,3169.2,0.8296]
[1736833995535,0.55,3169.7,3169.2,1.37172051]
[1736833995696,0.55,3169.7,3169.3,0.21050148]
[1736833995895,0.55,3169.7,3169.2,1.37172051]
[1736833996218,3.55,3169.7,3169.3,0.21050148]
[1736833996610,3.55,3169.7,3169.2,0.8296]
[1736833996797,3.55,3169.7,3169.4,0.21045428]
[1736833997000,3.55,3169.7,3169.3,0.21050148]
[1736833997197,3.55,3169.7,3169.5,0.21040708]
[1736833997630,3.70491,3169.7,3169.2,0.8296]
[1736833997837,3.70491,3169.7,3169.6,0.21035988]
[1736833998035,4.075401,3169.7,3169.2,0.8296]
[1736833998435,4.075401,3169.7,3169.3,0.21050148]
[1736833999044,4.075401,3169.7,3169.2,0.8296]
[1736833999244,4.075401,3169.7,3169.4,0.21045428]
[1736833999442,4.075401,3169.7,3169.3,0.21050148]
[1736833999606,3.70111088,3169.7,3169.5,0.21040708]
[1736833999803,3.70111088,3169.7,3169.4,0.21045428]
[1736834000006,3.70111088,3169.7,3169.6,0.21035988]
[1736834000447,3.70111088,3169.7,3169.2,0.8296]
[1736834000945,3.70111088,3169.7,3169.3,0.21050148]
[1736834001104,3.70111088,3169.7,3169.2,0.8296]
[1736834001309,3.70111088,3169.7,3169.3,0.21050148]
[1736834001546,3.70111088,3169.7,3169.2,0.8296]
[1736834001738,3.70111088,3169.7,3169.3,0.21050148]
[1736834001948,3.70111088,3169.7,3169.2,0.8296]
[1736834002246,3.70111088,3169.7,3169.3,0.21050148]
[1736834002545,3.70111088,3169.7,3169.2,0.8296]
[1736834002844,3.70111088,3169.7,3169.3,0.21050148]
[1736834003207,3.70111088,3169.7,3169.2,0.8296]
[1736834003403,3.70111088,3169.7,3169.4,0.21062594]
[1736834003659,3.70111088,3169.7,3169.3,0.21067314]
[1736834003811,3.70111088,3169.7,3169.5,0.21057874]
[1736834004017,3.70111088,3169.7,3169.4,0.21062594]
[1736834004242,3.70111088,3169.7,3169.6,0.21053155]
[1736834004453,3.70111088,3169.7,3169.5,0.21057874]
[1736834004637,3.70111088,3169.7,3169.2,0.8296]
[1736834004839,3.70111088,3169.7,3169.6,0.21053155]
[1736834005048,3.70111088,3169.7,3169.2,0.8296]
[1736834006028,3.70111088,3169.7,3169.3,0.21067314]
[1736834006553,3.0,3169.6,3169.4,0.21062594]
[1736834006752,3.0,3169.6,3169.2,0.8296]
[1736834006955,3.0,3169.6,3169.3,0.21067314]
[1736834007419,3.0,3169.6,3169.2,0.8296]
[1736834007618,3.0,3169.6,3169.4,0.21062594]
[1736834007819,3.0,3169.6,3169.3,0.21067314]
[1736834008019,3.55,3169.6,3169.5,0.21057874]
[1736834008515,3.55,3169.6,3169.2,0.8296]
[1736834008715,3.55,3169.6,3169.3,0.21067314]
[1736834008911,3.55,3169.6,3169.2,0.8296]
[1736834009215,3.55,3169.6,3169.3,0.21080031]
[1736834009634,3.55,3169.6,3169.2,0.8296]
[1736834009912,3.55,3169.6,3169.3,0.21080031]
[1736834010118,3.55,3169.6,3169.2,0.8296]
[1736834010318,3.55,3169.6,3169.3,0.21080031]
[1736834010554,0.55,3169.6,3169.2,0.8296]
[1736834010750,0.55,3169.6,3169.3,0.43736481]
[1736834013420,0.55,3169.6,3169.3,0.21080031]
[1736834013857,0.55,3169.6,3169.2,0.8296]
[1736834014155,0.55,3169.6,3169.3,0.21067315]
[1736834014355,0.55,3169.6,3169.2,0.8296]
[1736834014556,0.55,3169.6,3169.3,0.21067315]
[1736834014751,0.55,3169.6,3169.2,0.8296]
[1736834014956,0.55,3169.6,3169.3,0.21067315]
[1736834015159,0.55,3169.6,3169.2,1.37171351]
[1736834015346,0.55,3169.6,3169.3,0.21067315]
[1736834015533,0.55,3169.6,3169.2,1.37171351]
[1736834015735,0.55,3169.6,3169.3,0.21067315]
[1736834015939,0.55,3169.6,3169.2,1.37171351]
[1736834016238,0.55,3169.6,3169.3,0.21067315]
[1736834016638,0.55,3169.6,3169.2,1.37171351]
[1736834016834,0.55,3169.6,3169.4,0.21060051]
[1736834017161,0.55,3169.6,3169.2,1.37171351]
[1736834017162,1.46427697,3170.0,3169.5,0.21055331]
[1736834017328,0.8248,3170.0,3169.6,0.8284]
[1736834017528,0.55,3169.9,3169.7,0.21045257]
[1736834018231,0.52,3169.9,3169.7,0.21045257]
[1736834018755,0.8248,3170.0,3169.7,0.21045257]
[1736834021463,3.70474,3169.9,3169.7,0.21045257]
[1736834021831,3.70474,3169.9,3169.2,0.8284]
[1736834022053,3.70474,3169.9,3169.8,0.21040538]
[1736834022229,3.70474,3169.9,3169.2,0.8284]
[1736834022424,0.55,3169.9,3169.2,0.8284]
[1736834022648,3.55,3169.7,3169.3,0.21064135]
[1736834023040,0.55,3169.6,3169.2,0.8284]
[1736834023241,0.55,3169.6,3169.4,0.21051149]
[1736834023437,0.5575,3169.9,3169.3,0.21055869]
[1736834023642,6.15502,3169.6,3169.5,0.21046429]
[1736834023853,6.15502,3169.6,3169.4,0.21051149]
[1736834024165,6.15502,3169.6,3169.2,0.8284]
[1736834024166,6.70502,3169.6,3169.5,0.21046429]
[1736834024370,6.70502,3169.6,3169.2,0.8284]
[1736834024659,3.55,3169.6,3169.3,0.21055869]
[1736834025166,3.55,3169.6,3169.4,0.21051149]
[1736834025366,3.55,3169.6,3169.2,0.8284]
[1736834025565,3.55,3169.6,3169.3,0.21070495]
[1736834025765,3.55,3169.6,3169.2,0.8284]
[1736834025965,3.55,3169.6,3169.3,0.21070495]
[1736834026133,3.55,3169.6,3169.2,0.8284]
[1736834026479,3.55,3169.6,3169.3,0.21066044]
[1736834026778,3.55,3169.6,3169.2,0.8284]
[1736834027070,3.55,3169.6,3169.4,0.21061323]
[1736834027284,3.55,3169.6,3169.3,0.21066044]
[1736834027580,3.55,3169.6,3169.4,0.21061323]
[1736834027785,3.55,3169.6,3169.2,0.8284]
[1736834027932,3.55,3169.6,3169.5,0.21055332]
[1736834028133,3.55,3169.6,3169.2,0.8284]
[1736834028334,3.55,3169.6,3169.3,0.21066044]
[1736834028575,3.55,3169.6,3169.2,0.8284]
[1736834028761,3.55,3169.6,3169.3,0.21066044]
[1736834028961,3.55,3169.6,3169.2,0.8284]
[1736834029284,3.55,3169.6,3169.3,0.21066044]
[1736834029579,3.55,3169.6,3169.2,0.8284]
[1736834029879,3.55,3169.6,3169.3,0.21066044]
[1736834030253,3.55,3169.6,3169.2,0.8284]
[1736834030579,3.55,3169.6,3169.3,0.21064136]
[1736834030878,3.55,3169.6,3169.2,0.8284]
[1736834031079,3.55,3169.6,3169.4,0.21059416]
[1736834031375,3.55,3169.6,3169.5,0.21054696]
[1736834031580,3.55,3169.6,3169.2,0.8284]
[1736834031755,3.55,3169.6,3169.3,0.21064136]
[1736834032077,3.55,3169.6,3169.2,0.8284]
[1736834032278,3.55,3169.6,3169.4,0.21059416]
[1736834032480,3.55,3169.6,3169.3,0.21064136]
[1736834032679,3.55,3169.6,3169.5,0.21054696]
[1736834033143,3.55,3169.6,3169.2,0.8284]
[1736834033350,3.55,3169.6,3169.3,0.21064136]
[1736834033576,3.0,3169.1,3168.6,0.7587]
[1736834033893,1.3647,3169.0,3168.7,0.21092463]
[1736834034055,4.3647,3169.0,3168.7,0.21092463]
[1736834034260,4.52031,3169.0,3168.7,0.21092463]
[1736834034468,1.3647,3169.0,3168.4,0.7587]
[1736834034642,3.55,3168.8,3168.4,0.7587]
[1736834034841,3.55,3168.8,3168.5,0.21098728]
[1736834040275,0.55,3168.6,3168.5,0.21098728]
[1736834040586,3.15626,3168.3,3167.8,2.06299]
[1736834040788,0.55,3168.2,3167.9,0.21195753]
[1736834040960,0.55,3168.2,3167.8,2.06299]
[1736834041161,3.15638,3168.2,3167.8,1.26469]
[1736834041360,3.0,3168.0,3167.9,0.21195753]
[1736834041594,3.15659,3168.0,3167.5,0.7983]
[1736834041888,3.0,3167.8,3167.4,0.1626024]
[1736834042067,3.0,3167.8,3167.6,0.21220742]
[1736834042272,3.0,3168.0,3167.5,0.21225467]
[1736834042475,3.15676,3167.8,3167.7,0.21216017]
[1736834042675,0.698331,3168.0,3167.6,0.21220742]
[1736834042883,3.0,3167.8,3167.4,0.1626024]
[1736834043288,3.0,3167.8,3167.5,0.2126428]
[1736834045793,3.0,3167.7,3167.5,0.2126428]
[1736834045985,0.3,3167.6,3167.5,0.2126428]
[1736834046212,6.15694,3167.7,3167.4,0.1626024]
[1736834046875,6.15694,3167.7,3167.5,0.21275736]
[1736834048682,1.45993592,3168.1,3167.5,0.21275736]
[1736834048894,2.23515851,3168.1,3167.5,0.21275736]
[1736834049094,3.0,3168.0,3167.5,0.7983]
[1736834049295,3.0,3168.0,3167.6,0.21285651]
[1736834051166,1.45993592,3168.1,3167.6,0.21285651]
[1736834051367,3.15659,3168.0,3167.6,0.21285651]
[1736834054598,0.8268,3168.1,3167.6,0.21285651]
[1736834054799,3.0,3167.8,3167.6,0.21285651]
[1736834055905,0.136,3168.4,3167.6,0.21285651]
[1736834055906,0.7672,3168.4,3167.6,0.21285651]
[1736834056106,0.25,3169.6,3167.6,0.21285651]
[1736834056107,3.15611,3168.5,3167.7,0.8102]
[1736834056304,1.53941609,3168.7,3167.7,0.8102]
[1736834056602,3.0,3168.2,3167.8,0.21343008]
[1736834057193,3.15611,3168.5,3167.9,0.8102]
[1736834057391,3.15611,3168.5,3168.0,0.21333559]
[1736834057977,3.0,3168.3,3168.0,0.21333559]
[1736834058789,3.15626,3168.3,3168.0,0.21333559]
[1736834060275,3.0,3168.4,3168.0,0.21333559]
[1736834061902,1.40341609,3168.7,3168.0,0.21333559]
[1736834062109,3.15617,3168.4,3168.0,0.21333559]
[1736834062627,3.15628,3168.3,3168.0,0.21333559]
[1736834066920,3.0,3168.4,3168.0,0.21333559]
[1736834067418,3.0,3168.4,3168.1,0.21300194]
[1736834067792,3.0,3168.4,3167.9,0.8102]
[1736834067989,3.0,3168.4,3168.0,0.21304918]
[1736834071753,3.0,3168.6,3168.0,0.21304918]
[1736834071953,3.15586,3168.7,3168.0,0.21304918]
[1736834072248,3.15597,3168.6,3168.1,0.8173]
[1736834072607,3.0,3168.7,3168.2,0.2129547]
[1736834073139,3.15589,3168.7,3168.2,0.2129547]
[1736834073509,3.15568,3168.9,3168.3,0.8173]
[1736834073943,3.0,3168.8,3168.4,0.21286024]
[1736834074139,3.0,3168.8,3168.3,0.8173]
[1736834074627,3.15579,3168.8,3168.4,0.21276477]
[1736834075030,3.15579,3168.8,3168.3,0.8173]
[1736834075217,3.15579,3168.8,3168.5,0.21271755]
[1736834075419,3.15579,3168.8,3168.3,0.8173]
[1736834075638,3.15579,3168.8,3168.4,0.21276477]
[1736834075943,3.15579,3168.8,3168.3,0.8173]
[1736834076317,3.15579,3168.8,3168.4,0.21276477]
[1736834076647,3.15579,3168.8,3168.3,0.8173]
[1736834076842,3.15579,3168.8,3168.5,0.21271755]
[1736834077036,3.15579,3168.8,3168.4,0.21276477]
[1736834077215,3.15579,3168.8,3168.6,0.21267032]
[1736834077416,3.15579,3168.8,3168.3,0.8173]
[1736834077633,3.0,3169.1,3168.4,0.21276477]
[1736834077836,3.15566,3168.9,3168.4,0.21276477]
[1736834078043,3.15566,3168.9,3168.3,0.8173]
[1736834078232,3.0,3168.8,3168.5,0.21271755]
[1736834078430,3.0,3168.8,3168.4,0.21276477]
[1736834078611,3.0,3168.8,3168.6,0.21267032]
[1736834078813,3.0,3168.8,3168.3,0.8173]
[1736834079040,3.0,3168.8,3168.4,0.21276477]
[1736834079354,3.0,3168.8,3168.3,1.21783199]
[1736834079526,3.0,3168.8,3168.4,0.21254204]
[1736834079726,3.15577,3168.8,3168.3,1.21783199]
[1736834079926,3.15577,3168.8,3168.4,0.21254204]
[1736834080138,3.15577,3168.8,3168.3,0.8173]
[1736834080338,3.15577,3168.8,3168.4,0.21254204]
[1736834080558,3.15577,3168.8,3168.3,0.8173]
[1736834080753,3.15577,3168.8,3168.4,0.21254204]
[1736834081052,3.15577,3168.8,3168.3,0.8173]
[1736834081250,3.15577,3168.8,3168.5,0.21249481]
[1736834081429,3.15577,3168.8,3168.4,0.21254204]
[1736834081630,3.15577,3168.8,3168.6,0.21244759]
[1736834081819,3.15577,3168.8,3168.5,0.21249481]
[1736834082021,3.15577,3168.8,3168.3,0.8173]
[1736834082319,3.15577,3168.8,3168.4,0.21254204]
[1736834082531,3.15577,3168.8,3168.3,2.082013]
[1736834082751,3.15577,3168.8,3168.4,0.21254204]
[1736834083048,3.15577,3168.8,3167.9,2.48270423]
[1736834083254,3.15577,3168.8,3168.5,0.20541008]
[1736834083458,3.15577,3168.8,3168.0,1.54454161]
[1736834083616,3.15577,3168.8,3168.6,0.20536285]
[1736834083822,3.15577,3168.8,3168.0,1.29627119]
[1736834084020,3.15577,3168.8,3168.7,0.20531563]
[1736834084223,3.47450293,3168.8,3168.0,1.29627119]
[1736834084454,3.15577,3168.8,3168.7,0.20531563]
[1736834084755,3.15577,3168.8,3168.0,4.45282119]
[1736834084960,3.15577,3168.8,3168.7,0.20531563]
[1736834085261,3.15577,3168.8,3168.0,4.45282119]
[1736834085446,3.15577,3168.8,3168.7,0.20531563]
[1736834085759,3.471347,3168.8,3168.7,0.20531563]
[1736834085971,3.471347,3168.8,3168.1,0.8173]
[1736834086257,3.15577,3168.8,3168.7,0.20531563]
[1736834086562,3.15577,3168.8,3168.1,0.8173]
[1736834086774,3.15577,3168.8,3168.7,0.20531563]
[1736834086929,3.15577,3168.8,3168.1,0.8173]
[1736834087129,3.15577,3168.8,3168.7,0.20531563]
[1736834087328,3.471347,3168.8,3168.1,0.8173]
[1736834087570,3.15577,3168.8,3168.1,0.8173]
[1736834087959,3.15577,3168.8,3168.2,0.20555177]
[1736834088928,3.0,3168.7,3168.2,0.20555177]
[1736834093997,3.15587,3168.7,3168.2,0.20555177]
[1736834095195,0.8213,3169.2,3168.3,0.84885928]
[1736834095406,3.97651,3169.4,3168.5,7.00945506]
[1736834095576,3.15538,3169.2,3168.6,0.20515926]
[1736834095964,3.0,3169.1,3168.6,0.20515926]
[1736834098590,3.15538,3169.2,3168.6,0.20515926]
[1736834098790,10.0,3169.1,3168.6,0.20515926]
[1736834099589,13.1555,3169.1,3168.6,0.20515926]
[1736834100220,3.15557,3169.0,3168.6,0.20515926]
[1736834100415,3.15568,3168.9,3168.6,0.20515926]
[1736834100976,3.05568,3168.9,3168.6,0.20515926]
[1736834110084,10.0,3169.1,3168.7,2.22595945]
[1736834110284,10.0,3169.1,3169.0,0.7576]
[1736834110537,10.0,3169.1,3169.0,0.97704023]
[1736834110688,10.0,3169.1,3169.0,1.1814953]
[1736834114329,10.0,3169.1,3169.0,1.1310953]
[1736834121157,10.0,3169.1,3169.0,0.20445507]
[1736834121354,10.8012,3169.1,3168.7,0.03155409]
[1736834121577,10.0,3169.1,3168.7,0.03155409]
[1736834121735,10.0,3169.1,3168.8,0.20396434]
[1736834122270,10.0,3169.1,3168.9,0.20391712]
[1736834122682,11.315539,3169.1,3168.5,0.85405382]
[1736834122972,13.15549,3169.1,3168.5,0.85405382]
[1736834123154,13.15549,3169.1,3168.6,0.20405878]
[1736834123777,0.8012,3169.0,3168.6,0.20405878]
[1736834125741,3.15569,3168.9,3168.6,0.20405878]
[1736834125942,3.15189196,3168.9,3168.3,0.8225]
[1736834126191,3.15189196,3168.9,3168.4,0.20415323]
[1736834126356,3.15189196,3168.9,3168.3,1.04843023]
[1736834126557,3.15189196,3168.9,3168.4,0.204414]
[1736834126951,3.15189196,3168.9,3168.5,0.20436677]
[1736834127159,3.15189196,3168.9,3168.3,1.07998716]
[1736834127360,3.15189196,3168.9,3168.4,0.204414]
[1736834127565,3.15189196,3168.9,3168.3,1.07998716]
[1736834127969,3.15189196,3168.9,3168.4,0.204414]
[1736834128166,3.15189196,3168.9,3168.3,1.07998716]
[1736834128346,3.15189196,3168.9,3168.5,0.20436677]
[1736834128548,3.15189196,3168.9,3168.3,0.8225]
[1736834128748,3.15189196,3168.9,3168.4,0.204414]
[1736834129008,3.15189196,3168.9,3168.3,0.8225]
[1736834129209,3.15189196,3168.9,3168.5,0.20436677]
[1736834129517,3.94747,3168.7,3168.1,0.779]
[1736834129717,3.94747,3168.7,3168.6,0.2045167]
[1736834129718,3.94746,3168.7,3168.6,0.2045167]
[1736834129912,3.1561,3168.5,3168.0,1.264712]
[1736834130132,3.15619,3168.4,3167.9,0.779]
[1736834130331,4.263499,3168.3,3168.1,0.20475286]
[1736834130613,4.263499,3168.3,3168.2,0.20470562]
[1736834130791,4.263499,3168.3,3167.7,1.4068634]
[1736834130975,4.263499,3168.3,3168.2,0.20470562]
[1736834131178,4.263499,3168.3,3167.7,0.1421514]
[1736834131497,3.15669,3167.9,3167.7,0.1421514]
[1736834132929,0.776,3167.8,3167.7,0.1421514]
[1736834133533,3.15669,3167.9,3167.7,0.1421514]
[1736834134631,3.15676,3167.8,3167.7,0.1421514]
[1736834134841,3.58159529,3167.8,3167.7,0.1421514]
[1736834139103,3.58159529,3167.8,3167.7,0.34709323]
[1736834139304,3.58159529,3167.8,3167.7,0.1421514]
[1736834139516,3.58159529,3167.8,3167.7,0.34709323]
[1736834139717,3.58159529,3167.8,3167.7,0.1421514]
[1736834140333,3.58159529,3167.8,3167.7,0.34783773]
[1736834140543,3.58159529,3167.8,3167.7,0.1421514]
[1736834140742,3.58159529,3167.8,3167.7,0.34783773]
[1736834141441,3.58159529,3167.8,3167.7,0.1421514]
[1736834143828,0.42483529,3167.8,3167.7,0.1421514]
[1736834144024,0.03155929,3167.8,3167.7,0.34783773]
[1736834144706,3.18831929,3167.8,3167.7,0.34783773]
[1736834146040,6.15676,3167.8,3167.7,0.1421514]
[1736834146237,6.97426,3167.8,3167.7,0.1421514]
[1736834146438,7.67484193,3167.8,3167.7,0.1421514]
[1736834155769,6.85734193,3167.8,3167.7,0.1421514]
[1736834161538,6.85734193,3167.8,3167.7,0.34801597]
[1736834161740,6.85734193,3167.8,3167.7,0.1421514]
[1736834162161,6.85734193,3167.8,3167.7,0.34801597]
[1736834162361,6.85734193,3167.8,3167.7,0.1421514]
[1736834162563,6.85734193,3167.8,3167.7,0.34801597]
[1736834164047,6.85734193,3167.8,3167.7,0.1421514]
[1736834169477,7.62264193,3167.8,3167.7,0.1421514]
[1736834169679,7.63014193,3167.8,3167.7,0.1421514]
[1736834169984,7.63764193,3167.8,3167.7,0.1421514]
[1736834172068,8.18764193,3167.8,3167.7,0.1421514]
[1736834173387,7.63764193,3167.8,3167.7,0.1421514]
[1736834173596,7.75864193,3167.8,3167.7,0.1421514]
[1736834174082,7.61514193,3167.8,3167.7,0.1421514]
[1736834176181,7.81514193,3167.8,3167.7,0.1421514]
[1736834182861,7.82264193,3167.8,3167.7,0.1421514]
[1736834186810,7.82264193,3167.8,3166.2,0.7756]
[1736834186811,3.15814,3166.5,3166.2,0.7756]
[1736834187104,0.7937,3166.9,3166.2,0.7756]
[1736834187105,3.18971929,3166.4,3166.2,0.7756]
[1736834187273,3.18971929,3166.4,3166.3,0.20067358]
[1736834187477,3.18971929,3166.4,3166.2,0.7756]
[1736834188175,3.18971929,3166.4,3166.3,0.18726426]
[1736834188707,3.18971929,3166.4,3166.2,0.7756]
[1736834188869,3.18971929,3166.4,3166.3,0.18748641]
[1736834189072,3.18971929,3166.4,3166.2,0.7756]
[1736834189481,0.03155929,3166.4,3166.3,0.18749276]
[1736834189685,3.1581,3166.5,3166.2,0.7756]
[1736834189905,0.03155929,3166.4,3166.3,0.18749276]
[1736834190213,0.03155929,3166.4,3166.2,0.7756]
[1736834190699,0.03155929,3166.4,3166.3,0.18749276]
[1736834191078,0.03155929,3166.4,3166.2,0.7756]
[1736834191279,0.03155929,3166.4,3166.3,0.18749276]
[1736834191490,0.63126391,3166.8,3166.2,0.7756]
[1736834191491,0.03155929,3166.7,3166.2,0.7756]
[1736834191692,3.1581,3166.5,3166.3,0.18749276]
[1736834191896,3.1581,3166.5,3166.2,0.7756]
[1736834192104,3.1581,3166.5,3166.3,0.18749276]
[1736834192498,3.1581,3166.5,3166.2,0.7756]
[1736834192703,3.1581,3166.5,3166.3,0.18749276]
[1736834192880,3.1581,3166.5,3166.2,0.7756]
[1736834193280,0.03155929,3166.7,3166.3,0.18749276]
[1736834193480,3.15816,3166.4,3166.2,0.7756]
[1736834193900,0.778,3166.4,3165.6,0.8101]
[1736834194112,3.15834,3166.3,3165.6,0.8101]
[1736834194279,3.1584,3166.2,3165.6,0.8101]
[1736834194674,0.778,3166.6,3165.6,0.8101]
[1736834194908,3.15812,3166.5,3165.7,0.84168751]
[1736834195108,3.15812,3166.5,3165.7,1.24175426]
[1736834195490,3.15824,3166.4,3165.7,1.24175426]
[1736834195811,0.03155929,3166.4,3165.7,1.21016675]
[1736834196022,3.15845,3166.2,3165.7,0.8101]
[1736834196212,0.03155929,3166.1,3165.7,0.8101]
[1736834196811,3.19003929,3166.1,3165.7,0.8101]
[1736834197697,3.15856,3166.0,3165.7,0.8101]
[1736834198740,0.03155929,3165.9,3165.7,0.8101]
[1736834199227,3.15856,3166.0,3165.7,0.8101]
[1736834199689,3.1584,3166.2,3165.7,0.8101]
[1736834200205,3.1584,3166.2,3165.8,0.18891642]
[1736834200408,3.19004929,3166.1,3165.7,0.8101]
[1736834200594,3.19004929,3166.1,3165.9,0.18886912]
[1736834200994,3.19004929,3166.1,3165.7,0.8101]
[1736834201490,3.19004929,3166.1,3165.8,0.18891642]
[1736834201684,3.15865,3166.0,3165.7,0.8101]
[1736834202123,3.15865,3166.0,3165.8,0.18891642]
[1736834202329,3.03155929,3166.2,3165.8,0.18891642]
[1736834202486,3.15863,3166.0,3165.7,0.8101]
[1736834202905,3.15863,3166.0,3165.8,0.18891642]
[1736834203292,3.15863,3166.0,3165.7,0.8101]
[1736834203794,3.15863,3166.0,3165.8,0.18891642]
[1736834204226,3.15863,3166.0,3165.7,0.8101]
[1736834204390,3.15863,3166.0,3165.9,0.18886912]
[1736834204595,3.15866,3165.9,3165.4,0.8038]
[1736834204896,0.03155929,3165.8,3165.4,0.8038]
[1736834205091,3.15886,3165.7,3165.5,0.18907741]
[1736834205324,0.03155929,3165.6,3165.5,0.18907741]
[1736834205635,0.03155929,3165.6,3165.4,0.8038]
[1736834206722,0.03155929,3165.6,3165.5,0.18907741]
[1736834206925,3.15886,3165.7,3165.5,0.18907741]
[1736834208315,3.82,3166.1,3165.5,0.18907741]
[1736834208519,3.15868,3165.9,3165.1,0.8038]
[1736834208827,3.15868,3165.9,3165.3,0.8038]
[1736834209328,3.15868,3165.9,3165.4,0.18941054]
[1736834209831,0.03155929,3165.8,3165.4,0.18941054]
[1736834210126,3.97851,3166.1,3165.4,0.18941054]
[1736834210431,0.03155929,3166.0,3165.4,0.18941054]
[1736834210728,3.19012929,3166.0,3165.4,0.18941054]
[1736834210927,3.15868,3165.9,3165.4,0.18941054]
[1736834211129,0.03155929,3166.0,3165.4,0.18941054]
[1736834211130,3.19033929,3165.8,3165.4,0.18941054]
[1736834211306,3.19033929,3165.8,3165.3,0.8038]
[1736834211510,3.19033929,3165.8,3165.4,0.18965187]
[1736834212331,0.03155929,3165.8,3165.4,0.18965187]
[1736834212823,0.03155929,3165.9,3165.4,0.18965187]
[1736834213430,3.19027929,3165.9,3165.4,0.18965187]
[1736834214611,3.15851,3166.1,3165.5,0.8038]
[1736834214998,0.03155929,3166.0,3165.6,0.18950008]
[1736834215199,3.15868,3165.9,3165.6,0.18950008]
[1736834215402,0.03155929,3165.8,3165.6,0.18950008]
[1736834218642,3.0,3166.2,3165.6,0.18950008]
[1736834218845,3.774369,3166.1,3165.6,0.18950008]
[1736834219233,3.15869,3165.9,3165.6,0.18950008]
[1736834219430,0.03155929,3165.8,3165.6,0.18950008]
[1736834220952,3.15869,3165.9,3165.6,0.18950008]
[1736834221158,3.15853,3166.1,3165.6,0.18950008]
[1736834221361,0.82,3166.4,3165.7,0.7881]
[1736834221503,3.15817,3166.4,3165.7,0.81968942]
[1736834221708,0.7947,3166.6,3165.8,0.1893483]
[1736834221709,3.15836,3166.2,3165.8,0.1893483]
[1736834221927,0.03155929,3166.1,3165.7,0.7881]
[1736834222138,0.03155929,3166.1,3165.8,0.1893483]
[1736834222305,0.03155929,3166.1,3165.7,0.7881]
[1736834222510,0.03155929,3166.1,3165.8,0.18924667]
[1736834222710,0.03155929,3166.1,3165.7,0.7881]
[1736834223010,0.03155929,3166.1,3165.8,0.18924667]